[Event "44th Chess Olympiad Open 2022"]
[Site "Chennai"]
[Date "2022.07.30"]
[Round "2.68"]
[White "Amba Oyon Marius Claude"]
[Black "Ursus van Bemmelen"]
[Result "1/2-1/2"]
[ECO "B44"]
[WhiteElo "1938"]
[BlackElo "2145"]
[Annotator "TA"]
[PlyCount "116"]
[EventDate "2022.07.29"]
[EventType "team-tourn"]
[EventCountry "IND"]
[SourceTitle "playchess.com"]
[Source "ChessBase"]
[SourceQuality "1"]
[WhiteTeam "CMR"]
[BlackTeam "Netherlands Antilles"]
[BlackTeamCountry "AHO"]
[TimeControl "40/5400+30:1800+30"]

{[%evp 13,116,0,7,6,0,0,19,0,4,-35,-29,-38,-19,-21,-17,-37,-19,-61,-18,-42,-30,-35,-41,-31,-6,-38,-41,-53,-38,-76,-54,-67,-53,-81,-81,-131,-124,-122,-112,-118,-119,-115,-117,-115,-110,-110,-114,-124,-113,-135,-122,-129,-133,-127,-93,-102,-93,-91,-93,-100,-89,-139,0,0,0,0,0,0,0,0,0,0,0,0,0,0,0,0,0,0,0,0,0,0,0,0,0,0,0,-1020,-631,-12833,-12833,-12833,-460,-268,0,-12832,0,-213,0,-1545,0,-152,0]} 1. e4 {[%emt 0:00:13]} c5 {[%emt 0:00:30]} 2. Nf3 {[%emt 0:00:59][%cal Bg1f3,Bf3d4,Bd4b5][%mdl 32]} e6 {[%emt 0:00:41]} 3. d4 {[%emt 0:01:27]} cxd4 {[%emt 0:00:59]} 4. Nxd4 {[%emt 0:01:53]} Nc6 {[%emt 0:00:43]} 5. Nb5 {[%emt 0:01:59]} d6 {[%emt 0:00:11]} 6. Bf4 {[%emt 0:01:25]} e5 {[%emt 0:00:07]} 7. Be3 {[%emt 0:02:54]} Nf6 {[%emt 0:00:03]} 8. N5c3 {[%emt 0:02:41] B44: Sicilian: Taimanov: 5 Nb5.} Be6 {[%emt 0:06:52]} 9. Be2 {[%emt 0:02:24]} Be7 {[%emt 0:05:03]} 10. O-O {[%emt 0:01:32] The position is equal.} O-O {[%emt 0:01:14]} 11. f3 {[%emt 0:03:52]} d5 {[%emt 0:08:27]} 12. exd5 {[%emt 0:02:06]} Nxd5 {[%emt 0:00:18]} 13. Nxd5 {[%emt 0:00:17]} Bxd5 {[%emt 0:06:43] [#]} 14. Nc3 $146 {[%emt 0:03:06]} ({Predecessor:} 14. c3 Be6 15. Kh1 Qc7 16. Nd2 Rfd8 17. Qe1 Bf5 18. Qg3 Bd3 19. Rfe1 Bf8 20. f4 Bxe2 21. Rxe2 {1-0 (43) Palomo,F (2260)-Davy,D (2217) Caracas 2015}) 14... Be6 {[%emt 0:00:17]} 15. Ne4 {[%emt 0:01:05]} Nd4 {[%emt 0:04:13]} 16. Bxd4 {[%emt 0:04:30]} exd4 {[%emt 0:04:40]} 17. Bd3 {[%emt 0:06:23]} f5 {[%emt 0:12:31]} 18. Nd2 {[%emt 0:01:49]} Rc8 {[%emt 0:04:03]} 19. Kh1 {[%emt 0:10:29]} g6 {[%emt 0:13:20]} 20. Qe2 {[%emt 0:12:15]} Bf7 {[%emt 0:00:36]} 21. f4 {[%emt 0:00:55]} Bf6 {[%emt 0:02:46]} (21... Re8 $5 {[%cal Re7a3]} 22. b3 Bh4 $17) 22. Nf3 {[%emt 0:02:51]} Re8 {[%emt 0:00:42]} 23. Qf2 {[%emt 0:07:31]} Re3 {[%emt 0:06:01]} 24. Ne5 {[%emt 0:08:45]} (24. Rae1 $142) 24... Bxe5 $17 {[%emt 0:02:09]} 25. fxe5 {[%emt 0:00:09]} Qe7 {[%emt 0:03:11]} 26. Qf4 {[%emt 0:03:12]} (26. Bxf5 $2 gxf5 27. Qxf5 Be6 $19) 26... Qxe5 {[%emt 0:00:22]} 27. Qxe5 {[%emt 0:02:15]} Rxe5 {[%emt 0:00:10]} 28. Rf4 {[%emt 0:00:20]} Rd8 {[%emt 0:00:20]} 29. Kg1 {[%emt 0:00:22]} Be6 {[%emt 0:01:20]} 30. h4 {[%emt 0:03:09]} Kg7 {[%emt 0:00:32]} 31. Rd1 {[%emt 0:03:02]} h6 {[%emt 0:01:44]} (31... Bxa2 32. Ra1 Bf7 33. Rxa7 $15) 32. Rf2 {[%emt 0:01:15]} g5 {[%emt 0:07:14]} (32... Bxa2 33. b3 $11) 33. Rdf1 {[%emt 0:02:06]} f4 {[%emt 0:00:34]} ({Worse is} 33... gxh4 34. Rf4 $15) 34. g3 {[%emt 0:01:40]} Bh3 {[%emt 0:05:25]} ({Don't play} 34... fxg3 $6 35. Rf6 $11) ({Of course not} 34... Bxa2 35. gxf4 gxf4 36. Rxf4 $14) 35. gxf4 {[%emt 0:00:48]} gxf4 {[%emt 0:00:01]} 36. Rc1 {[%emt 0:02:09]} Rf8 {[%emt 0:00:34]} 37. Kh2 {[%emt 0:00:26]} (37. Bc4 $142) 37... Re3 {[%emt 0:03:50]} (37... Bg4 $1 $17 {White must now prevent ...Rh5.} 38. Rcf1 f3) 38. Rg1+ $11 {[%emt 0:00:39]} Rg3 {[%emt 0:00:24]} 39. Rxg3+ {[%emt 0:03:58]} fxg3+ {[%emt 0:00:02]} 40. Kxg3 {[%emt 0:00:02] Threatens to win with Rxf8.} Rxf2 {[%emt 0:00:15]} 41. Kxf2 {[%emt 0:30:24][%mdl 4096] Endgame KB-KB} Kf6 {[%emt 0:30:01]} 42. Kg3 {[%emt 0:00:36]} Be6 {[%emt 0:00:03]} 43. Kf4 {[%emt 0:00:00]} Bd5 {[%emt 0:00:00]} 44. a3 {[%emt 0:00:00]} b6 {[%emt 0:00:00]} 45. b4 {[%emt 0:00:00]} Bc6 {[%emt 0:00:00]} 46. Be4 {[%emt 0:00:00]} Bd7 {[%emt 0:00:00]} 47. Bf3 {[%emt 0:00:00]} Bf5 {[%emt 0:00:00]} 48. Be4 {[%emt 0:00:00]} Bd7 {[%emt 0:00:00]} 49. Bd5 {[%emt 0:00:00]} Bf5 {[%emt 0:00:00]} 50. Bb3 {[%emt 0:00:00]} Bg6 {[%emt 0:00:00]} 51. a4 $2 {[%emt 0:00:00][%mdl 8192] [#]} (51. Ba4 $11) 51... a5 $1 $19 {[%emt 0:00:00]} 52. bxa5 {[%emt 0:00:00]} bxa5 {[%emt 0:00:00]} 53. Kg3 {[%emt 0:00:00]} Bf5 {[%emt 0:00:00]} (53... Ke5 $142 54. Kf3 Bf5) 54. Kf4 {[%emt 0:00:00]} Bg6 {[%emt 0:00:00]} (54... Bh7 55. Kf3 Ke5) 55. Kg3 $1 {[%emt 0:00:00]} Bf5 $2 {[%emt 0:00:00]} (55... Ke5 56. Kf3 Bf5) 56. Kf4 {[%emt 0:00:00]} Bg6 {[%emt 0:00:00]} (56... Bh7 57. Kf3 Ke5) 57. Kg3 $1 {[%emt 0:00:00]} Bf5 $2 {[%emt 0:00:00]} (57... Kf5 $19 {has better winning chances.} 58. Bc4 Ke5) 58. Kf4 $17 {[%emt 0:00:00] [#]} Bg6 $2 {[%emt 0:00:00] Weighted Error Value: White=0.36/Black=0.69} ({Black should play} 58... Bh7 $1 $17 {[%cal Rh7f5]} 59. Kf3 Ke5) 1/2-1/2

[Event "44th Chess Olympiad Open 2022"]
[Site "Chennai"]
[Date "2022.07.30"]
[Round "2.69"]
[White "Mizzi, Jack"]
[Black "da Conceicao, Marcos"]
[Result "1-0"]
[ECO "D11"]
[WhiteElo "1913"]
[BlackElo "1713"]
[Annotator "TA"]
[PlyCount "61"]
[EventDate "2022.07.29"]
[EventType "team-tourn"]
[EventCountry "IND"]
[SourceTitle "playchess.com"]
[Source "ChessBase"]
[SourceQuality "1"]
[WhiteTeam "Malta"]
[BlackTeam "TLS"]
[WhiteTeamCountry "MLT"]
[TimeControl "40/5400+30:1800+30"]

{[%evp 9,61,47,61,62,63,51,65,41,40,50,47,25,32,20,29,-3,72,57,66,60,74,47,78,86,97,97,127,116,126,114,131,107,104,90,110,106,197,190,242,170,168,126,115,91,130,128,384,393,625,612,625,609,29981,29970]} 1. d4 {[%emt 0:00:05]} d5 {[%emt 0:00:39]} 2. c4 {[%emt 0:00:14]} c6 {[%emt 0:01:12]} 3. Nf3 {[%emt 0:00:17]} Nf6 {[%emt 0:00:51]} 4. Nbd2 {[%emt 0:00:12]} Bg4 {[%emt 0:01:22]} 5. Ne5 {[%emt 0:01:47]} e6 {[%emt 0:03:09]} 6. Nxg4 {[%emt 0:04:00] D11: Slav Defence: 3 Nf3 sidelines and 3...Nf6 4 e3 Bg4.} Nxg4 {[%emt 0:00:35] [#]} 7. e4 $146 {[%emt 0:01:20]} ({Predecessor:} 7. Nf3 dxc4 8. e4 b5 9. Ng5 Bb4+ 10. Bd2 Qxd4 11. Qe2 Bxd2+ 12. Qxd2 Qxd2+ 13. Kxd2 Nxf2 {0-1 (36) Borrowdale,K-Jones,L ICCF email 2008}) 7... Nf6 {[%emt 0:00:47]} (7... Qh4 $2 8. g3 Qg5 9. h4 $18) 8. e5 {[%emt 0:00:38] White is slightly better.} Nfd7 {[%emt 0:02:05]} 9. cxd5 {[%emt 0:01:01]} cxd5 {[%emt 0:00:36]} 10. Bd3 {[%emt 0:01:16]} Nc6 {[%emt 0:01:11]} 11. Nf3 {[%emt 0:02:21]} Bb4+ {[%emt 0:01:21]} 12. Bd2 {[%emt 0:00:39]} Be7 {[%emt 0:01:33]} (12... Qb6 $11 {remains equal.}) 13. O-O $16 {[%emt 0:00:32]} O-O {[%emt 0:00:31]} 14. Rc1 {[%emt 0:02:55]} Rc8 {[%emt 0:02:44]} 15. Bc3 {[%emt 0:07:38]} f6 {[%emt 0:02:00]} 16. exf6 {[%emt 0:00:31]} Bxf6 {[%emt 0:01:10]} 17. Re1 {[%emt 0:01:44][%cal Bf1e1,Be1c1,Bc1c8][%mdl 32]} Qe8 {[%emt 0:01:37]} 18. Qe2 {[%emt 0:01:34]} Nd8 {[%emt 0:00:16]} 19. Bf5 {[%emt 0:01:43]} Rc6 {[%emt 0:05:54]} 20. Bh3 {[%emt 0:03:27]} Qf7 {[%emt 0:02:10]} 21. Ba5 {[%emt 0:07:02]} Rxc1 {[%emt 0:06:47]} 22. Rxc1 {[%emt 0:00:07] [#] Threatens to win with Bxd8.} b6 {[%emt 0:00:32]} (22... Nb6 $16 {is a better defense.}) 23. Rc8 {[%emt 0:02:57][%cal Oc8d8] Black must now prevent Rxd8!} Re8 {[%emt 0:03:11]} (23... bxa5 $2 {[#]} 24. Rxd8 $1 {[%mdl 512]} Rxd8 25. Bxe6 $18) (23... Kh8 $142) 24. Bc3 {[%emt 0:01:33]} Nf8 {[%emt 0:00:38]} 25. Qb5 {[%emt 0:07:32]} Ng6 {[%emt 0:04:48]} 26. Bd2 {[%emt 0:05:29] Prevents Nf4.} h6 {[%emt 0:01:50] Prevents Ng5.} 27. Bg4 {[%emt 0:08:39] Bh5 is the strong threat. White is more active.} Rf8 $2 {[%emt 0:05:35][%mdl 8192] This costs Black the game.} (27... Nh4 $16) 28. Bh5 $18 {[%emt 0:02:34]} Kh7 {[%emt 0:05:15]} (28... a6 $142 29. Qxa6 Qb7 30. Qxb7 Nxb7) 29. Qd3 {[%emt 0:01:41]} Be7 {[%emt 0:04:41]} 30. Rc7 {[%emt 0:01:01]} Re8 {[%emt 0:03:01]} 31. Ne5 {[%emt 0:00:22] Weighted Error Value: White=0.12 (very precise) /Black=0.66} 1-0

[Event "44th Chess Olympiad Open 2022"]
[Site "Chennai"]
[Date "2022.07.30"]
[Round "2.69"]
[White "Cilia Vincenti, David"]
[Black "Guterres, Cosme"]
[Result "1-0"]
[ECO "D04"]
[WhiteElo "1904"]
[BlackElo "1692"]
[Annotator "TA"]
[PlyCount "75"]
[EventDate "2022.07.29"]
[EventType "team-tourn"]
[EventCountry "IND"]
[SourceTitle "playchess.com"]
[Source "ChessBase"]
[SourceQuality "1"]
[WhiteTeam "Malta"]
[BlackTeam "TLS"]
[WhiteTeamCountry "MLT"]
[TimeControl "40/5400+30:1800+30"]

{[%evp 12,75,20,18,25,20,0,10,44,45,39,29,55,0,0,0,20,-23,-11,-28,-12,-25,24,-53,142,-41,-38,-50,-58,-62,-41,-151,20,0,39,47,248,161,422,413,827,774,2784,2948,2960,2430,1784,1609,5414,5406,29988,29989,29994,29981,29968,29972,29993,29994,29995,29995,29996,29995,29995,29995,29995,29995]} 1. d4 {[%emt 0:00:03]} Nf6 {[%emt 0:00:14]} 2. Nf3 {[%emt 0:00:09]} d5 {[%emt 0:00:13]} 3. e3 {[%emt 0:00:14]} c6 {[%emt 0:00:16]} 4. Bd3 {[%emt 0:00:17]} Bg4 {[%emt 0:00:13]} 5. Nbd2 {[%emt 0:00:12]} Nbd7 {[%emt 0:00:17]} 6. h3 {[%emt 0:00:08]} Bh5 {[%emt 0:00:36]} 7. O-O {[%emt 0:00:17]} e6 {[%emt 0:00:18] D04: Colle System.} 8. c4 {[%emt 0:00:15]} Be7 {[%emt 0:00:23]} 9. b3 {[%emt 0:00:22]} a6 {[%emt 0:00:17][%cal Oe6e5] The position is equal.} (9... e5 $5 {[%cal Re5e4]} 10. cxd5 (10. dxe5 Nxe5 11. Be2 Nxf3+ 12. Nxf3 dxc4 $11) 10... Nxd5 $14) 10. Bb2 {[%emt 0:00:18] [#]} Rc8 $146 {[%emt 0:00:21]} ({Predecessor:} 10... O-O 11. Qc2 Bg6 12. Bxg6 hxg6 13. e4 Nxe4 14. Nxe4 dxe4 15. Qxe4 Qa5 16. a3 Rfe8 {1-0 (39) Dreev,A (2689)-Epishin,V (2610) St Petersburg 2004}) 11. Qc2 {[%emt 0:05:24]} b5 {[%emt 0:00:33]} 12. Ne5 {[%emt 0:02:12]} Nxe5 {[%emt 0:02:27]} 13. dxe5 {[%emt 0:02:08]} Nd7 {[%emt 0:00:23]} 14. g4 {[%emt 0:05:33]} Bg6 {[%emt 0:00:20]} 15. Bxg6 {[%emt 0:02:18]} hxg6 {[%emt 0:00:35]} 16. Kg2 {[%emt 0:01:16]} Qc7 {[%emt 0:01:06]} (16... O-O $142) 17. f4 {[%emt 0:02:35]} (17. cxd5 $1 $11 cxd5 18. Qxc7 Rxc7 19. Rac1) 17... Qb6 $2 {[%emt 0:00:25] [#]} (17... dxc4 $15 {stays ahead.} 18. bxc4 c5) 18. Rae1 $2 {[%emt 0:08:44]} (18. cxd5 $1 $16 Qxe3 19. Rf3 Qe2+ 20. Rf2) 18... Qb7 $15 {[%emt 0:00:32]} 19. f5 {[%emt 0:08:29]} gxf5 {[%emt 0:01:10]} 20. gxf5 {[%emt 0:00:16]} Nf8 {[%emt 0:02:11]} 21. fxe6 {[%emt 0:04:14]} (21. e4 $15) 21... fxe6 $2 {[%emt 0:00:23]} (21... Nxe6 $17 {aiming for ...Rh5.} 22. Qf5 Bb4) 22. Rf3 {[%emt 0:03:51]} Kd7 {[%emt 0:01:53]} 23. Rf7 $36 {[%emt 0:09:42][%mdl 2048] White has the initiative.} Re8 $2 {[%emt 0:01:34] Loses the game.} (23... Rc7 $14) 24. cxd5 {[%emt 0:01:47]} ({But not} 24. Rxg7 Kd8 25. Nf3 Qb6 26. cxd5 exd5) 24... cxd5 {[%emt 0:00:32]} (24... exd5 25. Nf3 Kd8) 25. Rc1 $18 {[%emt 0:12:21] [#] Black must now prevent Ba3.} Rd8 {[%emt 0:01:02]} (25... d4+ $142 26. Nf3 Rh6) 26. Ba3 {[%emt 0:02:10][%csl Ga3][%cal Rf7e7]} Ke8 {[%emt 0:02:17]} 27. Rxe7+ {[%emt 0:00:37]} Qxe7 {[%emt 0:00:54]} 28. Bxe7 {[%emt 0:00:40]} Kxe7 {[%emt 0:00:23]} 29. Qc5+ {[%emt 0:01:20]} Kf7 {[%emt 0:00:27]} 30. Rf1+ {[%emt 0:00:55]} Kg8 {[%emt 0:00:37]} 31. Qe7 {[%emt 0:01:32] White mates.} Ra8 {[%emt 0:00:33]} 32. Rf7 {[%emt 0:02:42][%csl Ge7][%cal Rf7g7]} Rh7 {[%emt 0:00:27]} 33. Nf3 {[%emt 0:00:20][%cal Bd2f3,Bf3g5,Bg5e6][%mdl 32]} Rc8 {[%emt 0:02:41]} 34. Ng5 {[%emt 0:00:58][%csl LRe6,LRh7]} Rh6 {[%emt 0:00:58]} 35. Rxg7+ {[%emt 0:02:54]} Kh8 {[%emt 0:00:32]} 36. Rf7 {[%emt 0:03:25]} Kg8 {[%emt 0:00:39]} 37. Rf6 {[%emt 0:00:26]} Rh4 {[%emt 0:00:45]} 38. Nxe6 {[%emt 0:02:27] Weighted Error Value: White=0.39/Black=0.89} 1-0

[Event "44th Chess Olympiad Open 2022"]
[Site "Chennai"]
[Date "2022.07.30"]
[Round "2.69"]
[White "de Araujo, Helder"]
[Black "Vella, Duncan"]
[Result "1-0"]
[ECO "A04"]
[WhiteElo "1742"]
[BlackElo "1985"]
[Annotator "TA"]
[PlyCount "71"]
[EventDate "2022.07.29"]
[EventType "team-tourn"]
[EventCountry "IND"]
[SourceTitle "playchess.com"]
[Source "ChessBase"]
[SourceQuality "1"]
[WhiteTeam "TLS"]
[BlackTeam "Malta"]
[BlackTeamCountry "MLT"]
[TimeControl "40/5400+30:1800+30"]

{[%evp 17,71,26,32,0,24,-43,-33,-51,-46,-81,-76,-87,-57,-48,-48,-103,-100,-99,-11,-11,-9,-22,-20,-21,31,0,81,41,54,0,-7,-9,55,-2,-4,-6,0,0,4,0,0,0,0,0,0,0,8,-8,14,18,154,80,704,698,698,680]} 1. d4 {[%emt 0:00:21]} Nf6 {[%emt 0:00:08]} 2. c4 {[%emt 0:00:27]} c5 {[%emt 0:00:14]} 3. Nf3 {[%emt 0:00:41]} cxd4 {[%emt 0:01:08]} 4. Nxd4 {[%emt 0:00:33]} Nc6 {[%emt 0:00:59]} 5. Nc3 {[%emt 0:00:55]} g6 {[%emt 0:00:55]} 6. g3 {[%emt 0:01:48]} Bg7 {[%emt 0:01:49]} 7. Nxc6 {[%emt 0:04:05]} bxc6 {[%emt 0:00:22]} 8. Bg2 {[%emt 0:00:22]} O-O {[%emt 0:02:23]} 9. O-O {[%emt 0:01:45]} Rb8 {[%emt 0:04:21][%cal Od7d5]} 10. Qc2 {[%emt 0:01:44] A04: Unusual lines after 1 Nf3 and King's Indian Attack.} Qc7 {[%emt 0:07:50][%cal Od7d5]} 11. b3 {[%emt 0:03:14]} (11. e4 $11) 11... d5 $1 $15 {[%emt 0:09:49]} 12. Bb2 {[%emt 0:17:24][%cal Rc4d5] Black is slightly better.} Bf5 {[%emt 0:06:33] [#]} 13. Qc1 $146 {[%emt 0:05:01][%cal Rc4d5]} ({Predecessor:} 13. e4 dxe4 14. Qe2 Rfd8 15. Nxe4 Bxe4 16. Bxe4 Nxe4 17. Bxg7 Nxg3 18. fxg3 Kxg7 19. Qf2 {0-1 (29) Perez Garcia,M (1310)-Pech,J (1654) LSS email 2015}) 13... dxc4 {[%emt 0:06:31]} 14. bxc4 {[%emt 0:04:14]} Rb4 {[%emt 0:07:08]} 15. Nd1 {[%emt 0:04:33]} Rfb8 {[%emt 0:02:33]} 16. Bc3 {[%emt 0:10:42]} ({White should play} 16. Ba3 $15) 16... Rxc4 $17 {[%emt 0:08:52] Strongly threatening ...Nd5.} 17. Ne3 {[%emt 0:04:10] [#] Prevents Nd5.} Rc5 {[%emt 0:07:30]} (17... Ne4 $1 $17 18. Nxc4 Nxc3) 18. Nxf5 $11 {[%emt 0:03:17]} Rxf5 {[%emt 0:00:26]} 19. Bd4 {[%emt 0:06:25] Prevents Rc5. A strong pair of Bishops.} Rd8 {[%emt 0:11:17]} 20. e3 {[%emt 0:03:07][%cal Be2e3,Be3e4][%mdl 32]} e5 {[%emt 0:03:05]} (20... Ra5 $11) 21. e4 {[%emt 0:04:45]} Rh5 {[%emt 0:00:48]} ({Much less strong is} 21... Rxd4 22. exf5 c5 23. Rb1 $16) (21... exd4 $11 22. exf5 c5) 22. Be3 {[%emt 0:02:33] And now h4 would win.} Ng4 {[%emt 0:01:06]} 23. h3 {[%emt 0:03:33]} (23. Bg5 $14 f6 24. Be3) 23... Nxe3 {[%emt 0:00:24]} 24. Qxe3 {[%emt 0:00:55]} f5 {[%emt 0:01:55]} (24... Rd4 $11) 25. g4 {[%emt 0:01:31]} (25. Qb3+ $14 Kh8 26. Rab1) 25... fxg4 {[%emt 0:01:03]} 26. hxg4 {[%emt 0:00:41]} Rh4 {[%emt 0:00:20]} 27. Qg5 {[%emt 0:01:45]} Rh6 {[%emt 0:00:08]} 28. Rad1 {[%emt 0:00:59][%cal Ba1d1,Bd1d3,Bd3d7,Bd7d8,Bd8e8][%mdl 32]} Re8 {[%emt 0:00:07]} 29. Rd3 {[%emt 0:01:29]} Qe7 {[%emt 0:00:18]} (29... Bf8 {feels hotter.} 30. Rc1 Kg7 31. Rcd1 Qf7) 30. Qxe7 {[%emt 0:00:23]} Rxe7 {[%emt 0:00:01]} 31. Rfd1 {[%emt 0:00:16]} g5 {[%emt 0:01:12]} 32. Rd7 {[%emt 0:01:50]} Kf8 {[%emt 0:02:38]} 33. Bf1 {[%emt 0:01:26][%mdl 1024] White has compensation.} c5 {[%emt 0:03:12] [#]} (33... Rf6 $11) 34. Bc4 {[%emt 0:01:11] White is more active.} (34. Rd8+ $142 $1 Re8 35. Bb5 Rxd8 36. Rxd8+ Ke7 37. Rd7+ Kf6 38. Rxa7) 34... Rc6 $2 {[%emt 0:02:01][%mdl 8192]} (34... Rb6 $16) 35. Rd8+ $18 {[%emt 0:00:16]} Re8 {[%emt 0:00:14] [#]} 36. Rxe8+ $1 {[%emt 0:00:11] Weighted Error Value: White=0.24 (precise) /Black=0.37} 1-0